bitfinex-derivatives/quotes_SOLF0:USTF0_20250310
["timestamp","ask_amount","ask_price","bid_price","bid_amount"]
[1741646759160,0.05714578,118.23,118.22,43.6828]
[1741646760262,33.46969342,118.31,118.22,37.76]
[1741646760562,79.71641016,118.33,118.22,72.77339342]
[1741646760755,33.46969342,118.31,118.22,72.77339342]
[1741646761159,8.4581,118.29,118.26,8.4599]
[1741646761357,79.71641016,118.33,118.26,35.22]
[1741646762056,33.52370215,118.31,118.28,0.06267994]
[1741646762255,41.92749342,118.29,118.28,0.06267994]
[1741646762461,68.68969342,118.29,118.22,35.22]
[1741646762662,6.4742,118.28,118.22,35.22]
[1741646762856,8.4595,118.27,118.22,35.22]
[1741646763358,8.4595,118.27,118.23,8.462]
[1741646763562,0.05386372,118.26,118.23,0.06320828]
[1741646763755,0.05386372,118.26,118.23,4.058]
[1741646763951,0.05386372,118.26,118.25,8.4607]
[1741646764155,0.05386372,118.26,118.25,43.6807]
[1741646764456,8.4575,118.3,118.26,8.4595]
[1741646764655,33.46969342,118.31,118.23,39.278]
[1741646764858,33.46969342,118.28,118.23,2.0451]
[1741646765056,8.4596,118.27,118.23,10.5067]
[1741646765355,33.46969342,118.28,118.23,35.22]
[1741646765558,0.06193794,118.26,118.24,0.05435728]
[1741646766258,8.52223794,118.26,118.24,0.05435728]
[1741646766465,0.06193794,118.26,118.24,0.05435728]
[1741646767265,2.2067,118.32,118.24,0.05435728]
[1741646767465,33.46969342,118.35,118.24,33.46969342]
[1741646767862,8.4567,118.31,118.27,8.4588]
[1741646768062,33.46969342,118.33,118.28,35.2]
[1741646768456,0.06511385,118.32,118.29,8.52139386]
[1741646768661,0.06511385,118.32,118.29,0.06409386]
[1741646769058,0.06511385,118.32,118.29,8.52149386]
[1741646769867,8.52091385,118.32,118.29,8.52149386]
[1741646770456,8.52091385,118.32,118.29,0.06409386]
[1741646770661,8.4565,118.31,118.29,0.06409386]
[1741646770863,0.06511385,118.32,118.29,0.06409386]
[1741646771266,8.52091385,118.32,118.29,0.06409386]
[1741646771662,0.06511385,118.32,118.29,8.52189386]
[1741646771863,0.06511385,118.32,118.29,0.06409386]
[1741646772362,0.06511385,118.32,118.31,8.4564]
[1741646772568,6.4029,118.37,118.31,35.2]
[1741646772968,8.4536,118.35,118.31,35.2]
[1741646773372,33.46969342,118.4,118.31,68.66969342]
[1741646773568,8.4503,118.4,118.36,8.4527]
[1741646773766,0.05845795,118.37,118.36,43.6527]
[1741646774266,0.05845795,118.37,118.36,35.2]
[1741646774973,0.05845795,118.37,118.36,43.6528]
[1741646775268,39.67119342,118.42,118.36,43.6528]
[1741646775269,33.46969342,118.42,118.36,35.2]
[1741646775469,8.4491,118.42,118.38,8.4513]
[1741646775663,33.46969342,118.44,118.36,35.2]
[1741646775874,8.449,118.42,118.37,8.4518]
[1741646776075,8.449,118.42,118.36,35.2]
[1741646776676,0.05573331,118.4,118.38,0.05517466]
[1741646777271,8.50603331,118.4,118.38,0.05517466]
[1741646777473,0.05573331,118.4,118.38,0.05517466]
[1741646777874,8.50613331,118.4,118.38,0.05517466]
[1741646778278,0.05573331,118.4,118.38,0.05517466]
[1741646778780,0.05573331,118.4,118.39,35.18]
[1741646779080,33.46969342,118.46,118.39,35.18]
[1741646779477,4.2464,118.48,118.39,68.64969342]
[1741646779681,4.2464,118.48,118.4,282.52016335]
[1741646779883,10.5677,118.49,118.45,8.4459]
[1741646780078,8.4438,118.49,118.44,35.18]
[1741646780274,0.0534878,118.48,118.44,35.18]
[1741646780587,0.0534878,118.48,118.45,0.06003726]
[1741646780883,33.52318122,118.48,118.45,0.06003726]
[1741646781084,0.0534878,118.48,118.45,0.06003726]
[1741646781484,0.0534878,118.48,118.45,35.22003726]
[1741646782782,33.52318122,118.48,118.45,0.06003726]
[1741646783485,0.0534878,118.48,118.45,0.06003726]
[1741646784585,8.4976878,118.48,118.45,0.06003726]
[1741646785183,8.445,118.47,118.45,0.06003726]
[1741646785492,0.0534878,118.48,118.45,0.06003726]
[1741646785880,8.4453,118.47,118.45,0.06003726]
[1741646786488,33.52318122,118.48,118.45,0.06003726]
[1741646786988,8.4457,118.46,118.45,0.06003726]
[1741646787381,41.96798122,118.48,118.45,0.06003726]
[1741646787685,33.52318122,118.48,118.45,0.06003726]
[1741646788390,0.0534878,118.48,118.45,0.06003726]
[1741646788593,0.0534878,118.48,118.47,8.445]
[1741646788889,37.73039342,118.54,118.46,35.14]
[1741646789189,8.4418,118.52,118.48,8.4437]
[1741646789493,37.73039342,118.54,118.48,8.4437]
[1741646789688,8.4412,118.53,118.49,8.4433]
[1741646789885,0.05840817,118.52,118.5,0.06506413]
[1741646790080,8.49980817,118.52,118.5,0.06506413]
[1741646790485,33.52810159,118.52,118.5,0.06506413]
[1741646790789,8.4421,118.51,118.5,0.06506413]
[1741646791789,0.05840817,118.52,118.5,0.06506413]
[1741646792383,8.49980817,118.52,118.5,0.06506413]
[1741646792785,0.05840817,118.52,118.5,0.06506413]
[1741646792985,0.05840817,118.52,118.51,8.4421]
[1741646793187,33.46969342,118.58,118.5,0.06506413]
[1741646793589,33.46969342,118.58,118.49,35.14]
[1741646793783,33.46969342,118.56,118.49,35.14]
[1741646794185,33.46969342,118.56,118.53,8.4405]
[1741646794388,39.78139342,118.6,118.53,35.12]
[1741646794983,4.2925,118.6,118.55,0.05914962]
[1741646795188,4.2925,118.6,118.56,35.12]
[1741646795388,33.46969342,118.62,118.56,35.12]
[1741646795591,4.2591,118.63,118.56,35.12]
[1741646795894,4.2591,118.63,118.58,0.05615088]
[1741646796094,33.46969342,118.62,118.58,0.05615088]
[1741646796594,8.4351,118.61,118.58,0.05615088]
[1741646796891,4.2591,118.63,118.58,0.05615088]
[1741646797287,8.4347,118.62,118.58,0.05615088]
[1741646797494,33.46969342,118.6,118.58,0.05615088]
[1741646797682,33.46969342,118.6,118.54,278.52]
[1741646797683,8.4387,118.56,118.54,278.52]
[1741646797887,8.4387,118.56,118.53,37.1894]
[1741646798391,33.46969342,118.58,118.53,37.1894]
[1741646798591,33.46969342,118.58,118.53,35.12]
[1741646798791,8.4397,118.55,118.53,35.12]
[1741646798991,8.4397,118.55,118.54,0.059139]
[1741646799593,37.87329342,118.56,118.48,4.1435]
[1741646800295,8.44,118.54,118.49,8.4432]
[1741646800596,8.4395,118.55,118.5,43.5424]
[1741646800792,0.05409425,118.53,118.5,35.15981623]
[1741646800993,0.05409425,118.53,118.5,0.05981623]
[1741646801189,8.4421,118.51,118.5,0.05981623]
[1741646801696,0.05409425,118.53,118.5,0.05981623]
[1741646802789,8.4421,118.51,118.5,0.05981623]
[1741646803498,8.4432,118.5,118.46,35.1]
[1741646803698,33.46969342,118.52,118.45,35.1]
[1741646803894,8.445,118.47,118.44,280.5335]
[1741646804292,33.46969342,118.5,118.44,280.5335]
[1741646804595,0.05398035,118.47,118.44,278.4623521]
[1741646804996,0.05398035,118.47,118.44,311.93204552]
[1741646805191,8.4409,118.53,118.49,8.4431]
[1741646806093,8.4409,118.53,118.48,35.12]
[1741646806291,0.06271495,118.52,118.5,0.06456961]
[1741646806495,0.06271495,118.52,118.51,43.5621]
[1741646806697,33.46969342,118.58,118.51,35.12]
[1741646807396,4.2011,118.59,118.51,35.12]
[1741646807592,12.6379,118.59,118.54,8.4396]
[1741646807799,0.05580298,118.56,118.54,43.61873036]
[1741646808395,33.46969342,118.62,118.54,35.17913036]
[1741646808702,11.56167918,118.63,118.54,68.58969342]
[1741646808906,8.4348,118.62,118.57,8.4377]
[1741646809201,8.4348,118.62,118.57,43.5377]
[1741646809500,19.99537918,118.63,118.58,8.4371]
[1741646809700,11.56167918,118.63,118.58,0.05665694]
[1741646810101,8.4364,118.59,118.58,0.05665694]
[1741646810304,33.46969342,118.6,118.53,35.1]
[1741646810600,33.46969342,118.58,118.53,35.1]
[1741646811200,8.4384,118.57,118.53,35.1]
[1741646811499,0.05985286,118.57,118.54,0.05617174]
[1741646811693,2.07615286,118.57,118.54,0.05617174]
[1741646811894,4.25335286,118.57,118.54,0.05617174]
[1741646812303,33.46969342,118.56,118.49,35.1]
[1741646813000,8.4404,118.54,118.5,8.4422]
[1741646813198,33.46969342,118.56,118.49,35.1]
[1741646813501,0.06362263,118.54,118.51,0.06367142]
[1741646814607,0.06362263,118.54,118.51,8.50577142]
[1741646815007,0.06362263,118.54,118.52,35.1]
[1741646815408,0.06362263,118.54,118.53,8.4407]
[1741646816509,4.3608,118.6,118.56,8.4384]
[1741646816705,48.33581674,118.62,118.55,35.1]
[1741646816909,46.24671674,118.62,118.56,68.56969342]
[1741646817110,46.24671674,118.62,118.57,35.1]
[1741646817513,47.2589726,118.64,118.57,35.1]
[1741646817705,0.05751815,118.61,118.58,0.05681095]
[1741646819815,0.05751815,118.61,118.58,8.49341095]
[1741646820009,0.05751815,118.61,118.58,0.05681095]
[1741646820414,8.4364,118.59,118.58,0.05681095]
[1741646821012,33.46969342,118.6,118.52,35.1]
[1741646821510,33.46969342,118.58,118.52,35.1]
[1741646821711,68.56969342,118.58,118.5,2.0655]
[1741646821914,8.4406,118.54,118.5,8.4425]
[1741646822115,8.4406,118.54,118.53,0.06006633]
[1741646822314,0.05858496,118.55,118.53,0.06006633]
[1741646822510,0.05858496,118.55,118.53,8.50036633]
[1741646823305,0.05858496,118.55,118.53,0.06006633]
[1741646825313,8.44,118.54,118.53,0.06006633]
[1741646825915,8.49818496,118.55,118.53,0.06006633]
[1741646826214,0.05858496,118.55,118.53,0.06006633]
[1741646826416,8.44,118.54,118.53,0.06006633]
[1741646826819,0.05858496,118.55,118.53,0.06006633]
[1741646828618,8.49798496,118.55,118.53,0.06006633]
[1741646828817,0.05858496,118.55,118.53,0.06006633]
[1741646829219,8.44,118.54,118.53,0.06006633]
[1741646829416,0.05858496,118.55,118.53,0.06006633]
[1741646829617,0.05858496,118.55,118.53,8.50076633]
[1741646829817,0.05858496,118.55,118.53,0.06006633]
[1741646831314,8.44,118.54,118.53,0.06006633]
[1741646833010,33.46969342,118.52,118.42,33.46969342]
[1741646833211,33.46969342,118.5,118.42,37.2105]
[1741646833417,33.46969342,118.48,118.4,96.62303349]
[1741646833721,68.56969342,118.48,118.4,96.62303349]
[1741646834021,33.46969342,118.46,118.4,92.49343349]
[1741646834225,0.05509596,118.45,118.43,0.05645931]
[1741646834514,8.4471,118.44,118.43,0.05645931]
[1741646834723,41.91679342,118.44,118.43,0.05645931]
[1741646835315,74.42130818,118.44,118.4,92.49343349]
[1741646835516,33.46969342,118.41,118.4,72.5555307]
[1741646835711,33.46969342,118.41,118.38,289.04197967]
[1741646836018,33.46969342,118.39,118.31,35.1]
[1741646836318,8.4536,118.35,118.3,43.5569]
[1741646836515,0.062955,118.36,118.34,0.05591686]
[1741646836715,0.062955,118.36,118.3,35.1]
[1741646836915,0.062955,118.36,118.31,8.51983998]
[1741646837218,0.062955,118.36,118.31,0.06363998]
[1741646837820,35.1,118.43,118.32,33.46969342]
[1741646838015,33.46969342,118.42,118.33,35.1]
[1741646838518,33.46969342,118.42,118.34,8.454]
[1741646838712,33.46969342,118.42,118.33,35.1]
[1741646838911,35.1,118.43,118.37,0.05838865]
[1741646838912,0.05890759,118.39,118.37,0.05838865]
[1741646841126,8.51020759,118.39,118.37,0.05838865]
[1741646841724,0.05890759,118.39,118.37,0.05838865]
[1741646841924,8.4514,118.38,118.37,0.05838865]
[1741646842425,8.50960759,118.39,118.37,0.05838865]
[1741646842623,0.05890759,118.39,118.37,0.05838865]
[1741646843023,8.4481,118.43,118.37,0.05838865]
[1741646843218,33.46969342,118.44,118.37,2.13728865]
[1741646843525,8.4498,118.41,118.37,2.13728865]
[1741646843725,33.46969342,118.44,118.37,2.0789]
[1741646843920,33.46969342,118.44,118.38,8.4509]
[1741646844117,8.4482,118.43,118.37,2.0789]
[1741646844323,0.06150183,118.42,118.4,0.06139781]
[1741646844923,0.06150183,118.42,118.4,8.51129781]
[1741646845122,0.06150183,118.42,118.4,0.06139781]
[1741646845324,33.46969342,118.48,118.4,0.06139781]
[1741646845523,33.46969342,118.48,118.42,8.4479]
[1741646845718,33.46969342,118.48,118.41,35.14]
[1741646845925,33.46969342,118.46,118.39,35.14]
[1741646846222,68.60969342,118.46,118.39,35.14]
[1741646846422,0.05022225,118.44,118.41,0.0563621]
[1741646847021,33.51991567,118.44,118.41,0.0563621]
[1741646847228,33.46969342,118.42,118.41,0.0563621]
[1741646847425,68.60969342,118.42,118.36,35.14]
[1741646847628,8.4511,118.39,118.36,35.14]
[1741646848028,68.60969342,118.42,118.36,35.14]
[1741646848231,68.60969342,118.42,118.35,278.6]
[1741646848438,33.46969342,118.4,118.35,278.6]
[1741646848639,0.05729828,118.4,118.37,0.06035303]
[1741646849634,0.05729828,118.4,118.39,8.4507]
[1741646850041,33.46969342,118.46,118.37,35.20035303]
[1741646850341,33.46969342,118.46,118.42,8.4484]
[1741646850837,33.46969342,118.46,118.39,35.14]
[1741646851229,0.04928607,118.44,118.41,0.0609805]
[1741646851433,0.04928607,118.44,118.4,2.2078]
[1741646851744,0.04928607,118.44,118.41,2.22354759]
[1741646852244,8.444,118.49,118.45,8.4461]
[1741646852635,33.46969342,118.5,118.42,35.14]
[1741646852840,33.46969342,118.52,118.42,347.24969342]
[1741646853345,33.46969342,118.54,118.44,33.46969342]
[1741646853542,33.46969342,118.54,118.46,0.05377763]
[1741646854041,8.4411,118.53,118.49,0.05403386]
[1741646854239,33.46969342,118.54,118.49,0.05403386]
[1741646854446,33.46969342,118.54,118.49,2.27193386]
[1741646854742,33.46969342,118.52,118.49,0.05403386]
[1741646854946,33.46969342,118.5,118.43,2.2179]
[1741646855131,33.46969342,118.48,118.4,35.24]
[1741646855439,33.46969342,118.48,118.39,4.3478]
[1741646855440,8.4486,118.42,118.39,4.3478]
[1741646855739,33.46969342,118.44,118.39,2.2179]
[1741646855943,8.4481,118.43,118.39,2.2179]
[1741646856141,0.05403386,118.43,118.4,0.0647856]
[1741646856838,33.46969342,118.42,118.4,0.0647856]
[1741646857137,68.74969342,118.42,118.4,0.0647856]
[1741646857337,33.46969342,118.42,118.4,0.0647856]
[1741646857540,0.05403386,118.43,118.4,0.0647856]
[1741646858144,0.05403386,118.43,118.4,35.3247856]
[1741646858549,8.50203386,118.43,118.4,35.3247856]
[1741646858744,0.05403386,118.43,118.4,35.3247856]
[1741646859541,0.05403386,118.43,118.41,8.4486]
[1741646859840,54.08727868,118.49,118.41,2.0373]
[1741646860053,54.08727868,118.49,118.45,8.4463]
[1741646860235,54.08727868,118.51,118.45,8.4463]
[1741646860442,54.08727868,118.51,118.44,35.22]
[1741646860641,8.444,118.49,118.44,35.22]
[1741646861143,8.444,118.49,118.45,0.05746457]
[1741646861648,54.08727868,118.49,118.45,0.05746457]
[1741646862441,89.24727868,118.49,118.45,0.05746457]
[1741646862642,8.4457,118.46,118.45,0.05746457]
[1741646863049,43.6057,118.46,118.45,0.05746457]
[1741646863352,8.4457,118.46,118.45,0.05746457]
[1741646863741,35.16,118.48,118.45,0.05746457]
[1741646863742,8.4447,118.48,118.45,0.05746457]
[1741646863941,54.08727868,118.49,118.45,0.05746457]
[1741646864747,8.4444,118.48,118.45,0.05746457]
[1741646864946,54.08727868,118.49,118.45,0.05746457]
[1741646865352,35.2,118.48,118.45,0.05746457]
[1741646865551,54.08727868,118.46,118.39,2.0577]
[1741646865851,8.4493,118.41,118.39,2.0577]
[1741646866348,54.08727868,118.44,118.39,2.0577]
[1741646866752,0.05746457,118.43,118.4,0.06106157]
[1741646866953,8.50566457,118.43,118.4,0.06106157]
[1741646867551,0.05746457,118.43,118.4,0.06106157]
[1741646868757,0.05746457,118.43,118.4,37.38576157]
[1741646868954,54.08727868,118.46,118.4,39.57206157]
[1741646869147,62.53327868,118.46,118.42,8.4481]
[1741646869858,54.08727868,118.49,118.43,35.32]
[1741646869859,89.40727868,118.49,118.43,35.32]
[1741646870052,89.40727868,118.49,118.43,35.38297546]
[1741646870742,54.08727868,118.49,118.43,35.38297546]
[1741646870952,54.08727868,118.51,118.43,35.38297546]
[1741646871147,11.56167918,118.52,118.43,89.40727868]
[1741646871347,11.56167918,118.52,118.46,0.06062631]
[1741646871656,11.56167918,118.52,118.46,35.34062631]
[1741646871856,11.56167918,118.52,118.47,2.2262]
[1741646872457,54.08727868,118.51,118.47,2.2262]
[1741646872862,8.4437,118.49,118.47,2.2262]
[1741646873456,8.4442,118.48,118.47,2.2262]
[1741646873854,54.08727868,118.51,118.46,35.34062631]
[1741646874049,54.08727868,118.49,118.46,0.06062631]
[1741646874354,8.445,118.47,118.46,0.06062631]
[1741646874860,62.53227868,118.47,118.46,0.06062631]
[1741646876260,8.445,118.47,118.46,0.06062631]
[1741646877361,8.4446,118.48,118.46,0.06062631]
[1741646877862,54.08727868,118.49,118.46,0.06062631]
[1741646878062,8.445,118.47,118.46,0.06062631]
[1741646878455,8.4444,118.48,118.46,0.06062631]
[1741646879462,8.445,118.47,118.46,0.06062631]
[1741646880160,8.4445,118.48,118.46,0.06062631]
[1741646880367,33.26408434,118.5,118.44,8.4467]
[1741646880558,33.26408434,118.5,118.46,0.05602012]
[1741646880758,8.445,118.47,118.46,0.05602012]
[1741646880957,33.26408434,118.5,118.46,43.62132012]
[1741646881158,33.26408434,118.5,118.46,35.17602012]
[1741646881360,33.26408434,118.5,118.46,0.05602012]
[1741646881657,8.445,118.47,118.46,0.05602012]
[1741646883562,33.26408434,118.5,118.46,0.05602012]
[1741646883766,8.4447,118.48,118.46,0.05602012]
[1741646883965,68.38408434,118.52,118.46,0.05602012]
[1741646884164,33.26408434,118.52,118.46,0.05602012]
[1741646884465,33.26408434,118.52,118.46,2.13452012]
[1741646885059,33.26408434,118.5,118.47,4.2105]
[1741646885361,33.26408434,118.48,118.47,2.652e-05]
[1741646885565,68.38408434,118.48,118.41,2.133]
[1741646885754,33.26408434,118.45,118.41,2.133]
[1741646886156,8.4485,118.42,118.41,2.133]
[1741646886359,33.26408434,118.47,118.41,2.133]
[1741646886566,33.26408434,118.47,118.42,35.12]
[1741646886755,8.50857099,118.45,118.43,0.05628352]
[1741646887266,0.06217099,118.45,118.43,0.05628352]
[1741646887466,472.54,118.52,118.43,0.05628352]
[1741646887467,33.26408434,118.51,118.43,0.05628352]
[1741646887661,33.26408434,118.51,118.42,35.12]
[1741646887966,33.26408434,118.51,118.43,1.5397447]
[1741646888362,8.4429,118.5,118.45,8.4461]
[1741646888563,33.26408434,118.51,118.46,0.06338281]
[1741646889275,33.26408434,118.49,118.46,0.06338281]
[1741646889469,8.4432,118.5,118.46,8.4451]
[1741646889769,33.26408434,118.49,118.46,0.06305093]
[1741646890664,41.70908434,118.47,118.46,0.06305093]
[1741646891371,8.445,118.47,118.46,0.06305093]
[1741646892072,8.4446,118.48,118.46,0.06305093]
[1741646892266,33.26408434,118.49,118.46,0.06305093]
[1741646893070,8.445,118.47,118.46,0.06305093]
[1741646893365,33.26408434,118.51,118.46,0.06305093]
[1741646893567,33.26408434,118.51,118.46,8.50835093]
[1741646893765,33.26408434,118.49,118.46,0.06305093]
[1741646894368,8.445,118.47,118.46,0.06305093]
[1741646895676,41.70908434,118.47,118.46,0.06305093]
[1741646896370,33.26408434,118.47,118.41,2.133]
[1741646896681,33.26408434,118.45,118.41,2.133]
[1741646896977,8.4485,118.42,118.41,2.133]
[1741646897471,8.4494,118.41,118.4,0.05861861]
[1741646898366,33.32357043,118.43,118.4,0.05861861]
[1741646899168,0.05948609,118.43,118.4,8.50841861]
[1741646899368,33.26408434,118.47,118.4,35.25861861]
[1741646899573,35.22,118.5,118.4,35.2]
[1741646899873,4.9541318,118.48,118.4,35.2]
[1741646900074,35.22,118.5,118.4,35.2]
[1741646900274,8.4455,118.47,118.42,8.4482]
[1741646900668,35.22,118.5,118.43,0.06218294]
[1741646900870,4.95429868,118.48,118.43,0.06218294]
[1741646901171,11.56167918,118.51,118.43,35.36218294]
[1741646901376,8.4446,118.48,118.43,43.80948294]
[1741646901773,46.84167918,118.51,118.43,35.36218294]
[1741646902078,33.26408434,118.47,118.43,35.36218294]
[1741646902278,35.28,118.51,118.43,35.36218294]
[1741646902576,195.2522,118.53,118.44,8.447]
[1741646902778,35.24,118.51,118.43,35.36218294]
[1741646903479,33.26408434,118.46,118.43,0.06218294]
[1741646903775,41.71118434,118.44,118.43,0.06218294]
[1741646905979,33.26408434,118.44,118.43,0.06218294]
[1741646906176,33.26408434,118.46,118.43,0.06218294]
[1741646906482,35.32,118.48,118.43,0.06218294]
[1741646906683,33.26408434,118.47,118.43,0.06218294]
[1741646907183,33.26408434,118.47,118.44,8.4466]
[1741646907478,33.26408434,118.49,118.43,0.06218294]
[1741646908185,8.446,118.46,118.43,0.06218294]
[1741646908375,33.26408434,118.49,118.43,0.06218294]
[1741646908676,33.26408434,118.47,118.43,0.06218294]
[1741646908882,8.4452,118.47,118.43,8.50938294]
[1741646909283,33.26408434,118.49,118.44,8.4469]
[1741646909479,33.26408434,118.49,118.43,0.06218294]
[1741646909692,33.26408434,118.49,118.43,2.15038294]
[1741646910584,33.26408434,118.51,118.43,2.15038294]
[1741646910889,33.26408434,118.51,118.44,2.0503]
[1741646911075,46.24671674,118.54,118.46,33.32063534]
[1741646911280,33.26408434,118.52,118.46,0.056551]
[1741646911475,33.26408434,118.5,118.45,280.6153]
[1741646911689,41.70728434,118.5,118.48,0.05670025]
[1741646912084,33.26408434,118.52,118.48,0.05670025]
[1741646912289,33.26408434,118.5,118.48,0.05670025]
[1741646912481,35.38,118.49,118.44,2.0503]
[1741646912788,33.26408434,118.48,118.44,2.0503]
[1741646912983,33.26408434,118.5,118.44,2.0503]
[1741646913184,0.851,118.53,118.47,8.4446]
[1741646913185,41.70548434,118.52,118.47,8.4446]
[1741646913587,0.05662805,118.51,118.48,0.0618212]
[1741646914981,8.4435,118.49,118.48,0.0618212]
[1741646915694,33.26408434,118.5,118.48,0.0618212]
[1741646915891,35.55662805,118.51,118.48,0.0618212]
[1741646916587,8.4428,118.5,118.48,0.0618212]
[1741646916791,35.55662805,118.51,118.48,0.0618212]
[1741646917592,33.26408434,118.5,118.48,0.0618212]
[1741646917890,33.26408434,118.5,118.44,4.2841]
[1741646918093,8.4463,118.46,118.44,4.2841]
[1741646918288,33.26408434,118.48,118.44,4.2841]
[1741646918691,8.4453,118.47,118.44,4.2841]
[1741646919091,8.50008608,118.47,118.44,4.34845209]
[1741646919395,0.05478608,118.47,118.44,39.88845209]
[1741646919588,33.26408434,118.5,118.44,39.88845209]
[1741646919892,8.4445,118.48,118.44,48.33495209]
[1741646920094,33.26408434,118.5,118.44,39.88845209]
[1741646920296,8.4461,118.46,118.44,39.88845209]
[1741646920499,33.26408434,118.48,118.44,4.34845209]
[1741646920684,8.4464,118.45,118.41,2.1129]
[1741646920996,0.06392971,118.46,118.42,35.58]
[1741646921587,33.26408434,118.5,118.42,35.58]
[1741646921791,33.26408434,118.54,118.44,33.26408434]
[1741646922096,33.26408434,118.56,118.45,39.36181299]
[1741646922401,8.4427,118.51,118.46,9.98491299]
[1741646922694,33.26408434,118.52,118.47,2.1845]
[1741646922897,0.05903529,118.5,118.48,35.78]
[1741646923499,33.32311963,118.5,118.47,2.24295927]
[1741646923805,33.32311963,118.5,118.47,0.05845927]
[1741646924099,8.4442,118.48,118.47,0.05845927]
[1741646925301,0.05903529,118.5,118.47,0.05845927]
[1741646925807,0.05903529,118.5,118.48,8.444]
[1741646926003,0.05903529,118.5,118.49,35.78]
[1741646926301,33.26408434,118.56,118.49,44.2235]
[1741646926498,33.26408434,118.56,118.49,35.78]
[1741646926693,33.26408434,118.54,118.49,35.78]
[1741646927109,8.4419,118.52,118.49,35.78]
[1741646927302,33.26408434,118.54,118.5,0.06441808]
[1741646927798,8.4425,118.51,118.5,0.06441808]
[1741646929300,33.26408434,118.52,118.5,0.06441808]
[1741646929991,8.4421,118.51,118.5,0.06441808]
[1741646930704,33.26408434,118.54,118.5,0.06441808]
[1741646931404,33.26408434,118.56,118.51,35.8]
[1741646931802,8.4404,118.54,118.52,0.06014741]
[1741646932292,8.4407,118.53,118.52,0.06014741]
[1741646933103,41.70438434,118.54,118.52,0.06014741]
[1741646933297,33.26408434,118.54,118.52,0.06014741]
[1741646933500,33.26408434,118.56,118.52,0.06014741]
[1741646934313,8.4397,118.55,118.52,0.06014741]
[1741646934509,33.26408434,118.56,118.52,0.06014741]
[1741646934709,33.26408434,118.54,118.52,0.06014741]
[1741646935310,8.4407,118.53,118.52,0.06014741]
[1741646935509,33.26408434,118.54,118.52,0.06014741]
[1741646935710,41.70438434,118.54,118.52,0.06014741]
[1741646936108,33.26408434,118.56,118.52,0.06014741]
[1741646936304,41.70318434,118.56,118.53,8.4406]
[1741646936607,33.26408434,118.58,118.52,0.06014741]
[1741646936812,41.70158434,118.58,118.52,4.2763]
[1741646937012,33.26408434,118.58,118.54,0.0596343]
[1741646937209,33.26408434,118.58,118.54,35.7596343]
[1741646937513,41.70158434,118.58,118.54,44.1990343]
[1741646937913,33.26408434,118.58,118.54,35.7596343]
[1741646938114,8.438,118.57,118.54,35.7596343]
[1741646938316,33.26408434,118.58,118.54,35.7596343]
[1741646938613,8.439,118.56,118.54,35.7596343]
[1741646940216,8.4381,118.57,118.54,44.1996343]
[1741646940513,33.26408434,118.58,118.54,35.7596343]
[1741646940709,8.4359,118.6,118.57,8.4377]
[1741646941011,33.26408434,118.64,118.58,35.54]
[1741646941217,41.69738434,118.64,118.6,8.4353]
[1741646941416,33.26408434,118.64,118.61,35.66]
[1741646941619,33.26408434,118.64,118.61,0.05695205]
[1741646941916,33.26408434,118.62,118.55,278.38]
[1741646942107,33.26408434,118.6,118.55,35.64]
[1741646942309,8.4366,118.59,118.55,35.64]
[1741646942516,33.26408434,118.6,118.55,35.64]
[1741646943016,0.05625985,118.59,118.56,0.06285997]
[1741646943822,0.05625985,118.59,118.58,8.4371]
[1741646944018,33.26408434,118.64,118.58,35.76]
[1741646944319,33.26408434,118.64,118.59,2.0595]
[1741646944512,33.26408434,118.62,118.59,2.0595]
[1741646944812,8.4355,118.61,118.59,2.0595]
[1741646945009,33.26408434,118.62,118.59,2.0595]
[1741646945212,33.26408434,118.6,118.59,0.05594487]
[1741646945414,33.26408434,118.6,118.55,35.82]
[1741646946115,33.26408434,118.6,118.57,8.4373]
[1741646946316,0.06323832,118.61,118.54,2.0595]
[1741646946619,33.26408434,118.62,118.56,0.05390809]
[1741646946620,33.26408434,118.58,118.56,0.05390809]
[1741646946820,0.05718903,118.59,118.56,0.05390809]
[1741646947013,0.05718903,118.59,118.54,37.9195]
[1741646947212,0.05718903,118.59,118.56,0.05732372]
[1741646948517,8.4337,118.63,118.6,8.4353]
[1741646948722,33.26408434,118.64,118.59,36.06]
[1741646949121,8.4347,118.62,118.59,36.06]
[1741646949417,33.26408434,118.64,118.59,36.06]
[1741646949623,33.26408434,118.64,118.59,36.11773398]